Cogmind - Beta 16.1 @@@ ROGUE MODE // 2026.03.19 @ 17:11:16 Player: [THREAT] Result: Destroyed by G-34 Mercenary with Small Laser Performance ------------- Evolutions (0) 0 Regions Visited (2) 400 Robots Destroyed (25) 125 Value Destroyed (467) 467 Prototype IDs (0) 0 Alien Tech Used (0) 0 Bonus (0) 0 TOTAL SCORE: 992 Bonus ------- None Cogmind --------- Core Integrity 0/250 Matter 290/300 Energy 200/200 System Corruption 0% Temperature Cool (6) Movement Rolling (110) Location -10/Subcaves Parts ------- > --- POWER (1) -------- Subdweller Power Source > --- PROPULSION (2) --- Subdweller Monowheel Subdweller Monowheel > --- UTILITY (2) ------ Small Storage Unit Targeting Computer > --- WEAPON (2) ------- Hammer Hammer > --- INVENTORY (8) ---- Subdweller Optics Scrap Shield Subdweller Laser Subdweller Beam Cannon Subdweller Beam Cannon Subdweller Machine Gun Subdweller Shrapnel Launcher Peak State ------------ > --- POWER ------------ Ion Engine > --- PROPULSION ------- Makeshift Leg Makeshift Leg > --- UTILITY ---------- Small Storage Unit Targeting Computer > --- WEAPON ----------- Barrage Gun Makeshift Sword > --- INVENTORY -------- Subdweller Monowheel Heat Sink Subdweller Beam Cannon Light Cannon Subdweller Shrapnel Launcher Hammer Hammer Mining Claw [Rating: 19] Favorites ----------- Power Ion Engine Engine Ion Engine Propulsion Aluminum Leg Leg Aluminum Leg Wheel Subdweller Monowheel Utility Small Storage Unit Device Heat Sink Storage Small Storage Unit Processor Targeting Computer Weapon Mining Claw Energy Gun EM Pulse Gun Ballistic Gun Barrage Gun Launcher Subdweller Shrapnel Launcher Impact Weapon Hammer Slashing Weapon Mining Claw Build | -11 -10 -10 ------- Run | Yrd Mat Sub Slots Evolved . | . . . Power . | . . . Propulsion . | . . . Utility . | . . . Weapon . | . . . Parts Attached 24 | 6 7 11 Power 3 | 1 . 2 Engine 3 | 1 . 2 Core . | . . . Reactor . | . . . Propulsion 8 | 2 1 5 Treads . | . . . Leg 5 | 2 1 2 Wheel 3 | . . 3 Hover . | . . . Flight . | . . . Utility 3 | 1 2 . Device 1 | . 1 . Storage 1 | 1 . . Processor 1 | . 1 . Hackware . | . . . Protection . | . . . Artifact . | . . . Weapon 10 | 2 4 4 Energy Gun 2 | 2 . . Energy Cannon . | . . . Ballistic Gun 3 | . 2 1 Ballistic Cannon . | . . . Launcher 1 | . . 1 Special Weapon . | . . . Impact Weapon 2 | . 1 1 Slashing Weapon 2 | . 1 1 Piercing Weapon . | . . . Special Melee Weapon . | . . . Unidentified Prototypes . | . . . Parts Lost 7 | . 1 6 Power 2 | . . 2 Propulsion 2 | . . 2 Utility . | . . . Weapon 3 | . 1 2 Highest Loss Streak 4 | . 1 4 To Critical Strikes . | . . . Average Backups 5 | . 2 7 Power . | . . . Propulsion . | . . . Utility . | . . 1 Weapon 3 | . 1 5 Tool/Special . | . . . Unused Backups 9 | . 1 8 Power 1 | . 1 . Propulsion . | . . . Utility 3 | . . 3 Weapon 5 | . . 5 Tool/Special . | . . . Average Slot Usage (%) 94 | . 92 96 Engine 13 | . 14 12 Leg 24 | . 28 21 Wheel 2 | . . 4 Device 1 | . 3 . Storage 14 | . 14 14 Processor 10 | . 6 14 Energy Gun 4 | . 11 . Ballistic Gun 4 | . 4 4 Impact Weapon 6 | . 3 8 Slashing Weapon 10 | . 5 14 Peak Build Rating 19 | 6 7 19 Average Rating 10 | 4 6 14 On Entrance 4 | . 6 7 Avg Prop Armor Cover (%) 11 | . . 11 Naked Turns . | . . . Heaviest Build 20 | 14 15 20 Greatest Support 40 | 20 20 40 Greatest Overweight (x) 4 | . . 4 Average Overweight (x) . | . . . Largest Inventory Capacity 8 | 8 8 8 Average Capacity 7 | 7 8 8 Most Carried 8 | 4 6 8 Average Carried 5 | . 2 7 Final Capacity 8 | 8 8 8 Final Carried 8 | . 6 8 Class Distribution -------------------- 86% | Mutant 13% | Derelict-Mutant Dominant Class ---------------- Mutant | -10/Materials Mutant | -10/Subcaves Resources | -11 -10 -10 ----------- Run | Yrd Mat Sub Matter Collected 495 | 260 65 170 Remotely . | . . . Salvage Created 831 | 217 443 171 Parts 53 | 19 22 12 Haulers Intercepted 1 | . 1 . Recyclers Shooed . | . . . Parts Field Recycled . | . . . Retrieved Matter . | . . . Parts Self-Destructed 12 | . . 12 Prevented . | . . . Parts Restored . | . . . Kills | -11 -10 -10 ------- Run | Yrd Mat Sub Combat Hostiles Destroyed 14 | . 10 4 Melee 3 | . . 3 Guns 9 | . 9 . AOE 1 | . 1 . Classes Destroyed 7 | 2 4 1 Tunneler 6 | 5 1 . Hauler 1 | . 1 . Recycler 1 | 1 . . Watcher 3 | . 3 . Swarmer 6 | . 6 . Grunt 4 | . 4 . Subdweller 4 | . . 4 Best Kill Streak 6 | 6 5 1 Combat Bots Only 5 | . 5 2 Max Kills in Single Turn 2 | 2 2 1 Gunslinging . | . . . Exploded 1 | . 1 . Melee 1 | . . 1 Uniques/NPCs Destroyed . | . . . Combat | -11 -10 -10 -------- Run | Yrd Mat Sub Hostile Shots Fired 80 | . 39 41 Missed 21 | . 12 9 Hits 59 | . 27 32 Projectile 59 | . 27 32 Critical Strikes 2 | . 1 1 Damage Taken 985 | . 312 673 Core 257 | . 65 192 Absorbed by Shields . | . . . Core Remaining (%) 100 | 100 . . Volleys Fired 51 | 6 43 2 Largest 2 | 2 2 1 Hottest 80 | 80 80 40 Shots Fired 77 | 12 63 2 Gun 76 | 12 63 1 Cannon . | . . . Launcher 1 | . . 1 Special . | . . . Kinetic 2 | . . 2 Thermal . | . . . Explosive . | . . . Electromagnetic 75 | 12 63 . Robot Hit Streak 18 | 3 18 . Robot Miss Streak 4 | 1 4 . Penetration Max . | . . . Secondary Targets 2 | . 2 . Max Gunslinging Chain 1 | . 1 . Shots Hit Robots 64 | 8 38 18 Core Hits 30 | 7 18 5 Critical Kills . | . . . Critical Parts Destroyed 2 | . . 2 Critical Strikes 3 | . 1 2 Corrupt 1 | . 1 . Smash 2 | . . 2 Melee Attacks 29 | . . 29 Impact 7 | . . 7 Slashing 22 | . . 22 Piercing . | . . . Sneak Attacks . | . . . Combat Hostiles . | . . . Follow-up Attacks 1 | . . 1 Damage Inflicted 1247 | 170 600 477 Guns 618 | 122 496 . Cannons . | . . . Explosions 147 | 48 99 . Melee 471 | . . 471 Ramming 11 | . 5 6 Kinetic . | . . . Thermal 147 | 48 99 . Explosive . | . . . Electromagnetic 618 | 122 496 . Impact 109 | . . 109 Slashing 362 | . . 362 Piercing . | . . . Highest Corruption . | . . . Average Corruption . | . . . Corruption Purged . | . . . Corruption Blocked . | . . . Overload Shots . | . . . Overflow Damage 59 | . 10 49 Projectiles . | . . . Explosions 10 | . 10 . Melee 49 | . . 49 Knockbacks . | . . . Impact . | . . . Kinetic . | . . . Secondary . | . . . Self-Inflicted Damage 42 | . 39 3 Shots 1 | . 1 . Rammed 3 | . . 3 Targets Rammed 4 | . 1 3 Kicked 1 | . 1 . Crushed . | . . . Highest Temperature 192 | 54 192 . Average Temperature 57 | 29 65 . Received Heat Transfer 291 | . 96 195 Siege Activations . | . . . Martial Activations . | . . . Shielding Activations . | . . . Robots Disrupted . | . . . Combat Hostiles . | . . . Robots Corrupted 1 | . . 1 Combat Hostiles 1 | . . 1 Parts Fried 4 | . 3 1 Impact Corruptions 2 | . . 2 Robots Melted . | . . . Combat Hostiles . | . . . Parts Melted 1 | . . 1 Heat Transferred 200 | 50 150 . Parts Sabotaged . | . . . Parts Stolen . | . . . Parts Stripped . | . . . Power Chain Reactions 3 | 1 2 . Alert | -11 -10 -10 ------- Run | Yrd Mat Sub Maximum Alert Level . | . . . Low Security (%) 100 | 100 100 . Level 1 . | . . . Level 2 . | . . . Level 3 . | . . . Level 4 . | . . . Level 5 . | . . . High Security . | . . . Max Security . | . . . Peak Influence 164 | 20 164 . Initial 6 | . 6 . Average 76 | 3 84 . Influence Increases 333 | 30 303 . Destroy 0b10 Robot/C 200 | . 200 . Destroy 0b10 Robot/NC 55 | 30 25 . Destroy Leader 48 | . 48 . Successful Hack 8 | . 8 . Destroy Structure 7 | . 7 . Partial Spotted 15 | . 15 . Influence Decreases 333 | 20 281 32 Entered New Map 20 | . 4 16 Time Decay 303 | 20 267 16 Lost Part 10 | . 10 . Squads Dispatched 2 | . 2 . Investigation 1 | . 1 . Extermination . | . . . Reinforcement 1 | . 1 . Assault . | . . . Garrison . | . . . Intercept . | . . . Searches Triggered . | . . . Construction Impeded . | . . . Haulers Reinforced . | . . . Active Scanning Responses . | . . . Cargo Convoy Interrupts . | . . . Stealth | -11 -10 -10 --------- Run | Yrd Mat Sub Distress Signals . | . . . Communications Jammed . | . . . Distress Signals . | . . . Times Spotted 21 | . 13 8 Peak Tracking Total 3 | . 3 2 Tactical Retreats 1 | . . 1 Traps | -11 -10 -10 ------- Run | Yrd Mat Sub Traps Triggered . | . . . Indirectly . | . . . Trap Hack Attempts . | . . . Triggered . | . . . Disarmed . | . . . Reprogrammed . | . . . Reused . | . . . Traps Extracted . | . . . Installed . | . . . Triggered . | . . . Machines | -11 -10 -10 ---------- Run | Yrd Mat Sub Machines Disabled . | . . . Max in Single Turn . | . . . Machines Repaired . | . . . Machines Dismantled . | . . . Machines Sabotaged . | . . . Overloaded Fab Kills . | . . . Hacking | -11 -10 -10 --------- Run | Yrd Mat Sub Machines Accessed 5 | . 5 . Terminals 4 | . 4 . Fabricators . | . . . Repair Stations . | . . . Recycling Units 1 | . 1 . Scanalyzers . | . . . Garrison Access . | . . . Total Hacks 19 | . 19 . Successful 7 | . 7 . Failed 12 | . 12 . Catastrophic 1 | . 1 . Database Lockouts . | . . . Manual 14 | . 14 . Terminals 16 | . 16 . Fabricators . | . . . Repair Stations . | . . . Recycling Units 3 | . 3 . Scanalyzers . | . . . Garrison Access . | . . . Terminal Hacks 3 | . 3 . Alert Level 1 | . 1 . Locate Traps 1 | . 1 . Recall Reinforcements 1 | . 1 . Fabricator Hacks . | . . . Repair Station Hacks . | . . . Recycling Unit Hacks 1 | . 1 . Report Inventory 1 | . 1 . Scanalyzer . | . . . Garrison Access Hacks . | . . . Unauthorized Hacks 3 | . 3 . Terminals 3 | . 3 . Botnet 3 | . 3 . Fabricators . | . . . Repair Stations . | . . . Recycling Units . | . . . Scanalyzers . | . . . Garrison Access . | . . . Data Cores Recovered . | . . . Used . | . . . Hacking Detections 5 | . 5 . Full Trace Events 4 | . 4 . Feedback Events . | . . . Feedback Blocked . | . . . Robot Schematics Acquired . | . . . Robots Built . | . . . Authchips . | . . . Time . | . . . Total Robot Build Rating . | . . . Part Schematics Acquired . | . . . Parts Built . | . . . Authchips . | . . . Time . | . . . Total Part Build Rating . | . . . Part Studies Acquired . | . . . Parts Repaired . | . . . Time . | . . . Parts Recycled . | . . . Recycled Matter . | . . . Retrieved Matter . | . . . Retrieved Components . | . . . Parts Scanalyzed . | . . . Part Schematics Acquired . | . . . Parts Damaged . | . . . Bothacking | -11 -10 -10 ------------ Run | Yrd Mat Sub Used RIF Installer . | . . . Robots Hacked . | . . . Non-combat . | . . . Combat . | . . . Robot Hacks Applied . | . . . Relay Couplers Released . | . . . Fabnet Peak Effective % . | . . . Robots Rewired . | . . . Allies Hacked . | . . . Hacks Repelled . | . . . Allies | -11 -10 -10 -------- Run | Yrd Mat Sub Total Allies . | . . . Largest Group . | . . . Highest-Rated Group . | . . . Highest-Rated Ally . | . . . Total Orders . | . . . Ally Attacks . | . . . Total Damage . | . . . Kills . | . . . Allies Corrupted . | . . . Allies Melted . | . . . Intel | -11 -10 -10 ------- Run | Yrd Mat Sub Active Infowar (turns) . | . . . Robot Analysis Total . | . . . Derelict Logs Recovered 1 | . . 1 Drone Launches . | . . . Drone Recoveries . | . . . Exploration | -11 -10 -10 ------------- Run | Yrd Mat Sub Turns Passed 1549 | 67 634 848 Spaces Moved 892 | 37 344 511 Core 12 | 9 . 3 Treads . | . . . Legs 763 | 28 344 391 Wheels 117 | . . 117 Hover . | . . . Flight . | . . . Fastest Speed 50 | 50 120 110 Average Speed 126 | 102 120 132 Slowest Speed 250 | 120 120 250 Overloaded Moves . | . . . Propulsion Burnouts . | . . . Robots Hopped . | . . . Potential Cave-ins . | . . . Cave-ins Triggered . | . . . Exploration Rate (%) 34 | 3 59 40 Regions Visited 2 Branch Regions 1 Pre-discovered Areas 1 | . . 1 Known Exits Taken . | . . . Unknown Exits Taken 2 | 1 1 . Scrap Searched 1 | . . 1 Spaces Dug . | . . . Terrain Destroyed 20 | . 6 14 Melee . | . . . Projectile . | . . . AOE 20 | . 6 14 Terrain Rammed . | . . . Walls Destroyed . | . . . Machines Disabled . | . . . Actions | -11 -10 -10 --------- Run | Yrd Mat Sub Total 1193 | 54 502 637 Wait 151 | . 93 58 Move 890 | 36 343 511 Hop . | . . . Pick Up 26 | 6 10 10 Fast Attach 3 | . . 3 Attach 14 | 6 4 4 Detach 3 | . 2 1 Swap 12 | . 4 8 Drop 11 | . 2 9 Fire 51 | 6 43 2 Melee 28 | . . 28 Ram 3 | . . 3 Kick 1 | . 1 . Crush . | . . . Escape Stasis . | . . . Rewire . | . . . Trap . | . . . Miscellaneous . | . . . Route ------- -11/Scrapyard -10/Materials (discovered 3 exits: [*Mat] / [*Min] / [*Sub]) -10/Subcaves (discovered 3 exits: [*Mat x2] / Rec) History --------- Turn | Location | Event 5 | -11/Scrapyard | Discovered new exit (range 15) 68 | -11/Scrapyard | Entered Materials 241 | -10/Materials | Discovered new exit (range 8) 312 | -10/Materials | Build established: Mutant 322 | -10/Materials | Discovered new exit (range 15) 680 | -10/Materials | Discovered new exit (range 9) 702 | -10/Materials | Entered Subcaves 703 | -10/Subcaves | Approached by a straggling Scientist 709 | -10/Subcaves | Learned location of Zion (-6) 709 | -10/Subcaves | Met a Zionite searching for "candidates" 715 | -10/Subcaves | Ambushed by Subdwellers from Twisted Machinery 892 | -10/Subcaves | Shifting Twisted Machinery released Sub. Shrapnel Launcher 903 | -10/Subcaves | Shifting Twisted Machinery released Mak. Sword 1203 | -10/Subcaves | Discovered new exit (range 12) 1220 | -10/Subcaves | Identified exit to Recycling 1358 | -10/Subcaves | Core integrity fell below 50% 1380 | -10/Subcaves | Core integrity fell below 20% 1406 | -10/Subcaves | Lost 4 parts (1p1n2w) 1417 | -10/Subcaves | Discovered new exit (range 9) 1550 | -10/Subcaves | Destroyed by G-34 Mercenary with Small Laser Last Messages --------------- Acquired Disposable Heat Sink. CB-Z95(c): "I think it's somewhere southeast of here" EXIT=FOUND Subatomizers dissect the Sub. Monowheel. Acquired 9 matter. Acquired Sub. Monowheel. Subatomizers dissect the Sub. Monowheel. Acquired Sub. Power Source. Dropped Disposable Heat Sink. Acquired Sub. Machine Gun. Acquired 8 matter. Acquired 15 matter. Acquired 2 matter. Acquired 10 matter. Acquired Sub. Monowheel. CB-Z95(c): "I think it's somewhere southeast of here" CB-Z95(c): "I think it's somewhere south of here" Map ----- +----------------------------------------------------+ | ??## #### #??? ?????????????????????? | | ?## ##??# #### ???????????????????? | | # # ##?## ??????????????????? | | ### ### #??? ??????????????????? | | ## ## ##?? ???????????????????? | | #??# ????????????????????? | | ## #??# #??? ??????????????? | | ## ### #?? #??? ??????????????? | | ##?# #??# ##? #??????????????? | | #?## #### ## #???????????????? | | #### ## #????????????????? | | ### ## #?????????????????? | | ### ## #??????????????????? | | ??### ## ##### #??###??????????????? | | ????######???## ## ## ### #??????????????? | | ??????????????####### #??????????????? | | ????????????????????## ## ?????????? | | ?????????????????????## #????????? | | ?????????????????????## #???????????? | | ?????????????????????# c #???????????? | | ?????????????????????# #### #???????????? | | ?????????????????????#### ##????? #???????????? | | ???????????????????????## #??##????????????????? | | ???????????????????????# ## ###??????????????? | | ???????????????????????# #??????????????? | | ???????????????????????##@g # # #?????????????? | | ???????????????????????# g #?#??? #?????????????? | | ??????????????????????# #????????????????????? | | ??????????????????????# ! ???????????????????? | | ?????????????????????? !%* ??????????????????? | | ????????????????????? !%& ## ?????????????????? | | ???????????????????? = #?# ????????????????? | | ??????????????????? ###?? ???????????????? | | ?????????????????? #????? #?????????????? | | ??????????????????## ??????? #????????????? | | ???????????????????# ???????? #????????????? | | ??????????????????? # ???????? ????????????? | | ??????????????????? ?#???????????????????????? | | ?????????????????? #?????????????????????????? | | ????????????????????? ??????????????????????????? | | ?????????????????????????????????????????????????? | | ?????????????????????????????????????????????????? | | ?????????????????????????????????????????????????? | | ?????????????????????????????????????????????????? | | ?????????????????????????????????????????????????? | | ?????????????????????????????????????????????????? | | ?????????????????????????????????????????????????? | | ?????????????????????????????????????????????????? | | ?????????????????????????????????????????????????? | | ?????????????????????????????????????????????????? | +----------------------------------------------------+ Best States ------------- Heat Dissipation 35 Energy Generation 15 Energy Capacity 250 Matter Stores 300 Matter Capacity 300 Sight Range 16 Terrain Scan Density 10 Evasion (%) 55 Targeting Accuracy 5 Item Schematics ----------------- None Robot Schematics ------------------ None Fabricated ------------ Nothing Repaired ---------- Nothing Studied --------- None Alien Tech Used ----------------- None Achievements -------------- None Challenges ------------ None Game ------ Seed BoreLobotomyBay Manual? 0 Play Time 00:18:28 Cumulative 76.4 hours Start 2026.03.19 @ 16:44:53 End 2026.03.19 @ 17:11:16 Sessions 1 Manual Loads 0 Difficulty Rogue Special Mode None Game No. 45 Rogue 15 Adventurer 30 Explorer 0 Win Type - Total 1 Types 1/0/0/0/0/0/0/0/0/0 Lore% 27 Gallery% 32 Achievement% 33 Wizard Run 0 Options --------- Layout 2 ASCII 0 Keyboard 0 Movement Numpad Keybinds 0 Fullscreen 1 Font 16/SmallcapsGlow Map View 50x49 Zoom Use 71% Tactical HUD 0 Map Filters NONE Filters NONE Steam 1 RUN: 138e3912-eccc-40c5-bd9b-93ce5e9830ae